[Event "Titled Tuesday Blitz January 31 Early 2023"]
[White "Kalogeris, Ioannis"]
[Black "Zhigalko, Sergei"]
[WhiteFideId "4239563"]
[BlackFideId "13502956"]
[WhiteElo "2423"]
[BlackElo "2572"]
[Result "0-1"]
[Round "10"]
[TimeControl "180+2"]
[Date "2023.01.31"]
[WhiteClock "0:00:08"]
[BlackClock "0:00:03"]

1. e4 {[%clk 0:03:00]}  c5 {[%clk 0:03:00]} 2. Nf3 {[%clk 0:03:00]}  Nc6 {[%clk 0:03:00]} 3. Nc3 {[%clk 0:03:00]}  Nf6 {[%clk 0:03:00]} 4. e5 {[%clk 0:02:56]}  Ng4 {[%clk 0:02:59]} 5. Qe2 {[%clk 0:02:57]}  f6 {[%clk 0:02:59]} 6. exf6 {[%clk 0:02:51]}  Nxf6 {[%clk 0:02:59]} 7. d4 {[%clk 0:02:34]}  Nxd4 {[%clk 0:02:34]} 8. Nxd4 {[%clk 0:02:31]}  cxd4 {[%clk 0:02:35]} 9. Nb5 {[%clk 0:02:31]}  Qb6 {[%clk 0:02:33]} 10. Qe5 {[%clk 0:02:23]}  d6 {[%clk 0:02:26]} 11. Qxd4 {[%clk 0:02:20]}  Qxd4 {[%clk 0:02:27]} 12. Nxd4 {[%clk 0:02:20]}  a6 {[%clk 0:02:21]} 13. Bc4 {[%clk 0:01:49]}  d5 {[%clk 0:02:17]} 14. Bb3 {[%clk 0:01:49]}  e5 {[%clk 0:02:17]} 15. Nf3 {[%clk 0:01:46]}  Bd6 {[%clk 0:01:18]} 16. Be3 {[%clk 0:01:44]}  Bg4 {[%clk 0:01:13]} 17. h3 {[%clk 0:01:41]}  Bxf3 {[%clk 0:01:06]} 18. gxf3 {[%clk 0:01:42]}  d4 {[%clk 0:01:00]} 19. Bg5 {[%clk 0:01:38]}  Rf8 {[%clk 0:00:53]} 20. f4 {[%clk 0:01:22]}  h6 {[%clk 0:00:37]} 21. Bxf6 {[%clk 0:01:19]}  Rxf6 {[%clk 0:00:37]} 22. fxe5 {[%clk 0:01:04]}  Bxe5 {[%clk 0:00:38]} 23. Bd5 {[%clk 0:00:49]}  O-O-O {[%clk 0:00:27]} 24. Be4 {[%clk 0:00:48]}  d3 {[%clk 0:00:27]} 25. cxd3 {[%clk 0:00:47]}  Bxb2 {[%clk 0:00:26]} 26. Rb1 {[%clk 0:00:46]}  Rb6 {[%clk 0:00:09]} 27. Ke2 {[%clk 0:00:43]}  Rdd6 {[%clk 0:00:08]} 28. Rhg1 {[%clk 0:00:40]}  Kd8 {[%clk 0:00:08]} 29. Rg3 {[%clk 0:00:31]}  Re6 {[%clk 0:00:07]} 30. Rf3 {[%clk 0:00:31]}  Bf6 {[%clk 0:00:07]} 31. Rxb6 {[%clk 0:00:24]}  Rxb6 {[%clk 0:00:07]} 32. a4 {[%clk 0:00:22]}  Rb2+ {[%clk 0:00:04]} 33. Kf1 {[%clk 0:00:22]}  b6 {[%clk 0:00:04]} 34. Rf5 {[%clk 0:00:20]}  Kc7 {[%clk 0:00:03]} 35. a5 {[%clk 0:00:16]}  Bd4 {[%clk 0:00:03]} 36. axb6+ {[%clk 0:00:15]}  Kxb6 {[%clk 0:00:04]} 37. Rf7 {[%clk 0:00:15]}  Kc5 {[%clk 0:00:03]} 38. Kg2 {[%clk 0:00:15]}  a5 {[%clk 0:00:03]} 39. Rc7+ {[%clk 0:00:14]}  Kd6 {[%clk 0:00:03]} 40. Rf7 {[%clk 0:00:13]}  a4 {[%clk 0:00:03]} 41. Kg3 {[%clk 0:00:11]}  a3 {[%clk 0:00:03]} 42. Rf8 {[%clk 0:00:08]}  a2 {[%clk 0:00:03]} 43. Ra8 {[%clk 0:00:08]}  Rd2 {[%clk 0:00:03]} 44. f4 {[%clk 0:00:08]}  a1=Q {[%clk 0:00:03]} 0-1


[Site "https://www.chess.com"]

[Event "Titled Tuesday Blitz January 31 Early 2023"]
[White "Kosakowski, Jakub"]
[Black "Lotfizadeh, Mehdi"]
[WhiteFideId "1185080"]
[BlackFideId "42513618"]
[WhiteElo "2485"]
[BlackElo "1529"]
[Result "0-1"]
[Round "10"]
[TimeControl "180+2"]
[Date "2023.01.31"]
[WhiteClock "0:00:03"]
[BlackClock "0:00:07"]

1. e4 {[%clk 0:02:47]}  c5 {[%clk 0:02:59]} 2. Nf3 {[%clk 0:02:46]}  d6 {[%clk 0:02:59]} 3. d4 {[%clk 0:02:46]}  cxd4 {[%clk 0:02:59]} 4. Nxd4 {[%clk 0:02:47]}  Nf6 {[%clk 0:02:59]} 5. Nc3 {[%clk 0:02:47]}  a6 {[%clk 0:03:00]} 6. Be3 {[%clk 0:02:47]}  e5 {[%clk 0:02:58]} 7. Nb3 {[%clk 0:02:46]}  Be6 {[%clk 0:02:57]} 8. f3 {[%clk 0:02:46]}  h5 {[%clk 0:02:56]} 9. Nd5 {[%clk 0:02:39]}  Bxd5 {[%clk 0:02:54]} 10. exd5 {[%clk 0:02:40]}  Nbd7 {[%clk 0:02:53]} 11. Qd2 {[%clk 0:02:40]}  g6 {[%clk 0:02:51]} 12. O-O-O {[%clk 0:02:40]}  Nb6 {[%clk 0:02:48]} 13. Kb1 {[%clk 0:02:39]}  Nbxd5 {[%clk 0:02:43]} 14. Bg5 {[%clk 0:02:38]}  Be7 {[%clk 0:02:42]} 15. Bd3 {[%clk 0:02:38]}  a5 {[%clk 0:02:26]} 16. Bc4 {[%clk 0:02:10]}  a4 {[%clk 0:02:09]} 17. Nc1 {[%clk 0:02:03]}  Ra5 {[%clk 0:01:45]} 18. Nd3 {[%clk 0:01:55]}  O-O {[%clk 0:01:31]} 19. Rhe1 {[%clk 0:01:44]}  a3 {[%clk 0:01:22]} 20. b4 {[%clk 0:01:38]}  Ra8 {[%clk 0:01:15]} 21. h4 {[%clk 0:01:33]}  Qc7 {[%clk 0:01:09]} 22. Nxe5 {[%clk 0:01:24]}  dxe5 {[%clk 0:01:03]} 23. Bxd5 {[%clk 0:01:24]}  Nxd5 {[%clk 0:01:00]} 24. Qxd5 {[%clk 0:01:25]}  Bxb4 {[%clk 0:00:50]} 25. Rxe5 {[%clk 0:01:24]}  Qc3 {[%clk 0:00:38]} 26. Bc1 {[%clk 0:01:14]}  Rad8 {[%clk 0:00:22]} 27. Qxd8 {[%clk 0:01:12]}  Rxd8 {[%clk 0:00:23]} 28. Rxd8+ {[%clk 0:01:12]}  Kg7 {[%clk 0:00:23]} 29. Ree8 {[%clk 0:01:08]}  Be7 {[%clk 0:00:13]} 30. Rd3 {[%clk 0:01:04]}  Qb4+ {[%clk 0:00:11]} 31. Rb3 {[%clk 0:01:04]}  Qd6 {[%clk 0:00:11]} 32. Bxa3 {[%clk 0:00:56]}  Qd1+ {[%clk 0:00:10]} 33. Bc1 {[%clk 0:00:57]}  Bxh4 {[%clk 0:00:10]} 34. Rd3 {[%clk 0:00:56]}  Qf1 {[%clk 0:00:09]} 35. Re4 {[%clk 0:00:34]}  Bf6 {[%clk 0:00:09]} 36. g4 {[%clk 0:00:28]}  h4 {[%clk 0:00:08]} 37. f4 {[%clk 0:00:26]}  g5 {[%clk 0:00:08]} 38. f5 {[%clk 0:00:22]}  h3 {[%clk 0:00:08]} 39. Rd8 {[%clk 0:00:03]}  Qb5+ {[%clk 0:00:07]} 0-1


[Site "https://www.chess.com"]

[Event "Titled Tuesday Blitz January 31 Early 2023"]
[White "Shapiro, Viktor"]
[Black "Rakhmatullaev, Almas"]
[WhiteFideId "4175700"]
[BlackFideId "14205793"]
[WhiteElo "2192"]
[BlackElo "2275"]
[Result "1-0"]
[Round "10"]
[TimeControl "180+2"]
[Date "2023.01.31"]
[WhiteClock "0:00:47"]
[BlackClock "0:00:05"]

1. c4 {[%clk 0:03:00]}  Nf6 {[%clk 0:02:59]} 2. Nc3 {[%clk 0:03:01]}  e6 {[%clk 0:02:59]} 3. g3 {[%clk 0:03:01]}  d5 {[%clk 0:03:00]} 4. Bg2 {[%clk 0:03:02]}  Be7 {[%clk 0:02:57]} 5. Nf3 {[%clk 0:03:02]}  O-O {[%clk 0:02:55]} 6. O-O {[%clk 0:03:01]}  d4 {[%clk 0:02:50]} 7. Na4 {[%clk 0:03:01]}  c5 {[%clk 0:02:46]} 8. d3 {[%clk 0:03:01]}  Nc6 {[%clk 0:02:41]} 9. e3 {[%clk 0:03:01]}  e5 {[%clk 0:02:38]} 10. exd4 {[%clk 0:03:01]}  cxd4 {[%clk 0:02:24]} 11. Re1 {[%clk 0:03:01]}  Bd6 {[%clk 0:02:16]} 12. c5 {[%clk 0:02:58]}  Bc7 {[%clk 0:02:13]} 13. b4 {[%clk 0:02:58]}  Nxb4 {[%clk 0:01:53]} 14. Nxe5 {[%clk 0:02:58]}  Re8 {[%clk 0:01:53]} 15. Qb3 {[%clk 0:02:06]}  Nbd5 {[%clk 0:01:40]} 16. Nf3 {[%clk 0:01:59]}  Rxe1+ {[%clk 0:01:35]} 17. Nxe1 {[%clk 0:01:59]}  Be6 {[%clk 0:01:34]} 18. Qxb7 {[%clk 0:01:56]}  Rb8 {[%clk 0:01:33]} 19. Qa6 {[%clk 0:01:51]}  Nb4 {[%clk 0:01:18]} 20. Qxa7 {[%clk 0:01:51]}  Bd5 {[%clk 0:01:13]} 21. Bxd5 {[%clk 0:01:50]}  Nfxd5 {[%clk 0:01:13]} 22. Nb6 {[%clk 0:01:44]}  Nc3 {[%clk 0:00:58]} 23. Bd2 {[%clk 0:01:38]}  h5 {[%clk 0:00:25]} 24. a3 {[%clk 0:01:31]}  Nc6 {[%clk 0:00:18]} 25. Qa6 {[%clk 0:01:30]}  Ne5 {[%clk 0:00:16]} 26. Nc4 {[%clk 0:01:24]}  Ng4 {[%clk 0:00:09]} 27. Qc6 {[%clk 0:01:20]}  h4 {[%clk 0:00:05]} 28. Qf3 {[%clk 0:01:19]}  Nf6 {[%clk 0:00:04]} 29. gxh4 {[%clk 0:01:14]}  Nfd5 {[%clk 0:00:03]} 30. Bg5 {[%clk 0:01:13]}  Qd7 {[%clk 0:00:04]} 31. Ng2 {[%clk 0:01:12]}  Re8 {[%clk 0:00:04]} 32. Re1 {[%clk 0:01:10]}  Rxe1+ {[%clk 0:00:04]} 33. Nxe1 {[%clk 0:01:10]}  f6 {[%clk 0:00:05]} 34. Bd2 {[%clk 0:01:10]}  Qe6 {[%clk 0:00:05]} 35. Kf1 {[%clk 0:01:08]}  Nf4 {[%clk 0:00:05]} 36. Nd6 {[%clk 0:01:02]}  Bxd6 {[%clk 0:00:05]} 37. cxd6 {[%clk 0:01:02]}  Nfd5 {[%clk 0:00:05]} 38. Ng2 {[%clk 0:00:59]}  Qxd6 {[%clk 0:00:05]} 39. Nf4 {[%clk 0:00:59]}  Nxf4 {[%clk 0:00:05]} 40. Qxf4 {[%clk 0:00:59]}  Qxa3 {[%clk 0:00:05]} 41. Qxd4 {[%clk 0:00:58]}  Qa1+ {[%clk 0:00:06]} 42. Kg2 {[%clk 0:00:58]}  Qa8+ {[%clk 0:00:05]} 43. f3 {[%clk 0:00:57]}  Nd5 {[%clk 0:00:05]} 44. Qe4 {[%clk 0:00:56]}  Qc6 {[%clk 0:00:05]} 45. Kg3 {[%clk 0:00:56]}  Qd6+ {[%clk 0:00:05]} 46. f4 {[%clk 0:00:55]}  Qd7 {[%clk 0:00:06]} 47. h5 {[%clk 0:00:53]}  Ne7 {[%clk 0:00:06]} 48. Kf2 {[%clk 0:00:49]}  Nf5 {[%clk 0:00:06]} 49. Be3 {[%clk 0:00:47]}  Kh7 {[%clk 0:00:06]} 50. d4 {[%clk 0:00:46]}  Kh6 {[%clk 0:00:06]} 51. d5 {[%clk 0:00:46]}  Kxh5 {[%clk 0:00:06]} 52. Qe6 {[%clk 0:00:46]}  Qxe6 {[%clk 0:00:06]} 53. dxe6 {[%clk 0:00:46]}  Kg6 {[%clk 0:00:05]} 54. Bc5 {[%clk 0:00:45]}  Nh4 {[%clk 0:00:03]} 55. Kg3 {[%clk 0:00:45]}  Nf5+ {[%clk 0:00:03]} 56. Kf3 {[%clk 0:00:46]}  Nh4+ {[%clk 0:00:03]} 57. Ke4 {[%clk 0:00:46]}  f5+ {[%clk 0:00:03]} 58. Kd5 {[%clk 0:00:46]}  Nf3 {[%clk 0:00:03]} 59. Kd6 {[%clk 0:00:44]}  Nxh2 {[%clk 0:00:03]} 60. Kd7 {[%clk 0:00:44]}  Ng4 {[%clk 0:00:03]} 61. Bd4 {[%clk 0:00:44]}  Nf6+ {[%clk 0:00:02]} 62. Bxf6 {[%clk 0:00:44]}  Kxf6 {[%clk 0:00:02]} 63. e7 {[%clk 0:00:45]}  g5 {[%clk 0:00:03]} 64. e8=Q {[%clk 0:00:46]}  gxf4 {[%clk 0:00:04]} 65. Qf8+ {[%clk 0:00:46]}  Kg5 {[%clk 0:00:05]} 66. Kd6 {[%clk 0:00:47]}  f3 {[%clk 0:00:05]} 67. Ke5 {[%clk 0:00:47]}  Kg4 {[%clk 0:00:06]} 68. Qxf5+ {[%clk 0:00:47]}  Kg3 {[%clk 0:00:07]} 69. Ke4 {[%clk 0:00:48]}  f2 {[%clk 0:00:08]} 70. Ke3 {[%clk 0:00:48]}  Kh2 {[%clk 0:00:06]} 71. Qxf2+ {[%clk 0:00:47]}  Kh1 {[%clk 0:00:07]} 72. Qf7 {[%clk 0:00:47]}  Kg1 {[%clk 0:00:07]} 73. Qg6+ {[%clk 0:00:47]}  Kf1 {[%clk 0:00:05]} 74. Qg7 {[%clk 0:00:47]} 1-0


[Site "https://www.chess.com"]

[Event "Titled Tuesday Blitz January 31 Early 2023"]
[White "Koelle, Tobias"]
[Black "Senthil, Maran K"]
[WhiteFideId "16207378"]
[BlackFideId "25035681"]
[WhiteElo "2432"]
[BlackElo "2209"]
[Result "1-0"]
[Round "10"]
[TimeControl "180+2"]
[Date "2023.01.31"]
[WhiteClock "0:01:09"]
[BlackClock "0:00:02"]

1. e4 {[%clk 0:03:00]}  c5 {[%clk 0:02:58]} 2. Qg4 {[%clk 0:03:01]}  d5 {[%clk 0:02:51]} 3. Bb5+ {[%clk 0:03:00]}  Nc6 {[%clk 0:02:49]} 4. Bxc6+ {[%clk 0:03:00]}  bxc6 {[%clk 0:02:49]} 5. Qe2 {[%clk 0:03:01]}  Nf6 {[%clk 0:02:47]} 6. d3 {[%clk 0:03:00]}  e6 {[%clk 0:02:29]} 7. Nf3 {[%clk 0:02:58]}  Be7 {[%clk 0:02:28]} 8. O-O {[%clk 0:02:57]}  a5 {[%clk 0:02:29]} 9. a4 {[%clk 0:02:57]}  O-O {[%clk 0:02:27]} 10. b3 {[%clk 0:02:52]}  Ba6 {[%clk 0:02:27]} 11. c4 {[%clk 0:02:49]}  Rb8 {[%clk 0:02:25]} 12. Qc2 {[%clk 0:02:48]}  Nd7 {[%clk 0:02:12]} 13. Bf4 {[%clk 0:02:47]}  Rb7 {[%clk 0:02:11]} 14. Nbd2 {[%clk 0:02:47]}  f6 {[%clk 0:01:58]} 15. Bg3 {[%clk 0:02:44]}  e5 {[%clk 0:01:54]} 16. h3 {[%clk 0:02:36]}  Nb6 {[%clk 0:01:54]} 17. Nh2 {[%clk 0:02:30]}  Rd7 {[%clk 0:01:54]} 18. Rad1 {[%clk 0:02:28]}  Qc8 {[%clk 0:01:46]} 19. Ng4 {[%clk 0:02:25]}  Rfd8 {[%clk 0:01:46]} 20. Nb1 {[%clk 0:02:24]}  Na8 {[%clk 0:01:40]} 21. Ne3 {[%clk 0:02:09]}  Nc7 {[%clk 0:01:39]} 22. Nf5 {[%clk 0:02:07]}  Bf8 {[%clk 0:01:37]} 23. f3 {[%clk 0:01:54]}  Ne6 {[%clk 0:01:37]} 24. Be1 {[%clk 0:01:51]}  Nd4 {[%clk 0:01:35]} 25. Nxd4 {[%clk 0:01:51]}  cxd4 {[%clk 0:01:36]} 26. Bxa5 {[%clk 0:01:51]}  Re8 {[%clk 0:01:37]} 27. Be1 {[%clk 0:01:50]}  Qb7 {[%clk 0:01:31]} 28. Nd2 {[%clk 0:01:49]}  Rb8 {[%clk 0:01:29]} 29. Rb1 {[%clk 0:01:49]}  Qb6 {[%clk 0:01:24]} 30. exd5 {[%clk 0:01:45]}  cxd5 {[%clk 0:01:24]} 31. cxd5 {[%clk 0:01:45]}  Bb4 {[%clk 0:01:17]} 32. Nc4 {[%clk 0:01:43]}  Qc5 {[%clk 0:01:18]} 33. Bxb4 {[%clk 0:01:43]}  Rxb4 {[%clk 0:01:19]} 34. f4 {[%clk 0:01:38]}  e4 {[%clk 0:01:10]} 35. dxe4 {[%clk 0:01:35]}  Bxc4 {[%clk 0:00:46]} 36. bxc4 {[%clk 0:01:33]}  Rxc4 {[%clk 0:00:47]} 37. Qb3 {[%clk 0:01:27]}  f5 {[%clk 0:00:42]} 38. Qb8+ {[%clk 0:01:22]}  Kf7 {[%clk 0:00:42]} 39. Qe5 {[%clk 0:01:22]}  d3+ {[%clk 0:00:32]} 40. Kh1 {[%clk 0:01:20]}  Qd6 {[%clk 0:00:11]} 41. Qxf5+ {[%clk 0:01:18]}  Ke7 {[%clk 0:00:12]} 42. Qxh7 {[%clk 0:01:14]}  Qf6 {[%clk 0:00:10]} 43. d6+ {[%clk 0:01:11]}  Rxd6 {[%clk 0:00:10]} 44. e5 {[%clk 0:01:11]}  Qg6 {[%clk 0:00:01]} 45. exd6+ {[%clk 0:01:12]}  Qxd6 {[%clk 0:00:01]} 46. Qxg7+ {[%clk 0:01:11]}  Kd8 {[%clk 0:00:02]} 47. Qg8+ {[%clk 0:01:09]}  Kd7 {[%clk 0:00:02]} 48. Qxc4 {[%clk 0:01:09]} 1-0


[Site "https://www.chess.com"]

[Event "Titled Tuesday Blitz January 31 Early 2023"]
[White "Starozhilov, Leonid"]
[Black "Veiga, Jose Francisco R P Neves"]
[WhiteFideId "14106752"]
[BlackFideId "1930087"]
[WhiteElo "2313"]
[BlackElo "2406"]
[Result "1-0"]
[Round "10"]
[TimeControl "180+2"]
[Date "2023.01.31"]
[WhiteClock "0:00:10"]
[BlackClock "0:00:44"]

1. e4 {[%clk 0:03:00]}  Nc6 {[%clk 0:02:50]} 2. Bb5 {[%clk 0:02:58]}  e5 {[%clk 0:02:44]} 3. Nf3 {[%clk 0:02:58]}  Nge7 {[%clk 0:02:44]} 4. c3 {[%clk 0:02:52]}  a6 {[%clk 0:02:38]} 5. Ba4 {[%clk 0:02:51]}  b5 {[%clk 0:02:30]} 6. Bb3 {[%clk 0:02:49]}  d5 {[%clk 0:02:30]} 7. O-O {[%clk 0:02:43]}  Bg4 {[%clk 0:02:27]} 8. exd5 {[%clk 0:02:37]}  Nxd5 {[%clk 0:02:26]} 9. h3 {[%clk 0:02:36]}  Be6 {[%clk 0:02:23]} 10. d4 {[%clk 0:02:34]}  exd4 {[%clk 0:02:22]} 11. Nxd4 {[%clk 0:02:23]}  Nxd4 {[%clk 0:02:22]} 12. Qxd4 {[%clk 0:02:24]}  c5 {[%clk 0:02:19]} 13. Qe4 {[%clk 0:02:24]}  Be7 {[%clk 0:02:17]} 14. Re1 {[%clk 0:02:07]}  Ra7 {[%clk 0:02:14]} 15. c4 {[%clk 0:01:44]}  Nf6 {[%clk 0:02:02]} 16. Qc6+ {[%clk 0:01:40]}  Qd7 {[%clk 0:02:01]} 17. cxb5 {[%clk 0:01:28]}  axb5 {[%clk 0:01:53]} 18. Qxd7+ {[%clk 0:01:20]}  Kxd7 {[%clk 0:01:54]} 19. Bxe6+ {[%clk 0:01:18]}  fxe6 {[%clk 0:01:55]} 20. Bf4 {[%clk 0:01:13]}  Nd5 {[%clk 0:01:49]} 21. Be5 {[%clk 0:01:12]}  Bf6 {[%clk 0:01:49]} 22. Nd2 {[%clk 0:01:09]}  Rha8 {[%clk 0:01:47]} 23. a3 {[%clk 0:01:06]}  c4 {[%clk 0:01:40]} 24. Rad1 {[%clk 0:00:59]}  c3 {[%clk 0:01:12]} 25. bxc3 {[%clk 0:00:31]}  Rxa3 {[%clk 0:01:11]} 26. c4 {[%clk 0:00:23]}  bxc4 {[%clk 0:01:12]} 27. Nxc4 {[%clk 0:00:21]}  Rb3 {[%clk 0:01:12]} 28. Bxf6 {[%clk 0:00:14]}  gxf6 {[%clk 0:01:12]} 29. Ne3 {[%clk 0:00:15]}  Ra5 {[%clk 0:01:09]} 30. Rd4 {[%clk 0:00:15]}  Kc6 {[%clk 0:00:51]} 31. Rc1+ {[%clk 0:00:14]}  Kb6 {[%clk 0:00:51]} 32. Nc4+ {[%clk 0:00:14]}  Kb5 {[%clk 0:00:45]} 33. Nxa5 {[%clk 0:00:14]}  Kxa5 {[%clk 0:00:46]} 34. Rc6 {[%clk 0:00:13]}  Rb6 {[%clk 0:00:40]} 35. Rxb6 {[%clk 0:00:13]}  Kxb6 {[%clk 0:00:41]} 36. Rh4 {[%clk 0:00:13]}  Kc5 {[%clk 0:00:42]} 37. Rxh7 {[%clk 0:00:14]}  Kd6 {[%clk 0:00:42]} 38. Rg7 {[%clk 0:00:14]}  Ke5 {[%clk 0:00:43]} 39. h4 {[%clk 0:00:14]}  f5 {[%clk 0:00:44]} 40. h5 {[%clk 0:00:14]}  Kf6 {[%clk 0:00:44]} 41. h6 {[%clk 0:00:14]}  Nf4 {[%clk 0:00:45]} 42. Rg8 {[%clk 0:00:10]}  Ne2+ {[%clk 0:00:45]} 43. Kf1 {[%clk 0:00:11]}  Ng3+ {[%clk 0:00:44]} 44. fxg3 {[%clk 0:00:10]} 1-0


[Site "https://www.chess.com"]

[Event "Titled Tuesday Blitz January 31 Early 2023"]
[White "Mirzoev, Azer"]
[Black "Tomaszewski, Kacper"]
[WhiteFideId "13400304"]
[BlackFideId "1127373"]
[WhiteElo "2416"]
[BlackElo "2313"]
[Result "1-0"]
[Round "10"]
[TimeControl "180+2"]
[Date "2023.01.31"]
[WhiteClock "0:01:27"]
[BlackClock "0:01:06"]

1. Nf3 {[%clk 0:03:00]}  d5 {[%clk 0:02:57]} 2. c4 {[%clk 0:03:00]}  e6 {[%clk 0:02:55]} 3. d4 {[%clk 0:02:59]}  Nf6 {[%clk 0:02:55]} 4. e3 {[%clk 0:02:58]}  c5 {[%clk 0:02:54]} 5. cxd5 {[%clk 0:02:58]}  exd5 {[%clk 0:02:53]} 6. Bb5+ {[%clk 0:02:58]}  Nc6 {[%clk 0:02:48]} 7. Ne5 {[%clk 0:02:51]}  Bd7 {[%clk 0:02:47]} 8. Nxd7 {[%clk 0:02:50]}  Qxd7 {[%clk 0:02:48]} 9. O-O {[%clk 0:02:44]}  cxd4 {[%clk 0:02:45]} 10. exd4 {[%clk 0:02:44]}  Be7 {[%clk 0:02:44]} 11. Nc3 {[%clk 0:02:43]}  O-O {[%clk 0:02:43]} 12. h3 {[%clk 0:02:42]}  a6 {[%clk 0:02:40]} 13. Ba4 {[%clk 0:02:41]}  b5 {[%clk 0:02:38]} 14. Bc2 {[%clk 0:02:38]}  Rfe8 {[%clk 0:02:18]} 15. Bg5 {[%clk 0:02:32]}  Ne4 {[%clk 0:02:10]} 16. Nxe4 {[%clk 0:01:59]}  dxe4 {[%clk 0:02:08]} 17. Bxe7 {[%clk 0:02:00]}  Rxe7 {[%clk 0:02:03]} 18. d5 {[%clk 0:01:59]}  Nb4 {[%clk 0:01:51]} 19. Bb3 {[%clk 0:01:53]}  Rd8 {[%clk 0:01:47]} 20. Qd4 {[%clk 0:01:38]}  Nxd5 {[%clk 0:01:46]} 21. Rad1 {[%clk 0:01:34]}  Nf6 {[%clk 0:01:38]} 22. Qb6 {[%clk 0:01:31]}  Re6 {[%clk 0:01:06]} 23. Rxd7 {[%clk 0:01:27]} 1-0


[Site "https://www.chess.com"]

[Event "Titled Tuesday Blitz January 31 Early 2023"]
[White "Vlassov, Nikolai"]
[Black "Vestby-Ellingsen, Mads"]
[WhiteFideId "4103360"]
[BlackFideId "1520857"]
[WhiteElo "2283"]
[BlackElo "2387"]
[Result "0-1"]
[Round "10"]
[TimeControl "180+2"]
[Date "2023.01.31"]
[WhiteClock "0:00:06"]
[BlackClock "0:00:31"]

1. e4 {[%clk 0:03:00]}  e5 {[%clk 0:02:58]} 2. Bc4 {[%clk 0:03:00]}  Nf6 {[%clk 0:02:58]} 3. d3 {[%clk 0:03:00]}  Bc5 {[%clk 0:02:56]} 4. Nf3 {[%clk 0:03:00]}  d6 {[%clk 0:02:56]} 5. Bg5 {[%clk 0:03:00]}  h6 {[%clk 0:02:55]} 6. Bh4 {[%clk 0:03:00]}  g5 {[%clk 0:02:54]} 7. Bg3 {[%clk 0:03:00]}  Bg4 {[%clk 0:02:53]} 8. h4 {[%clk 0:02:52]}  Nh5 {[%clk 0:02:28]} 9. hxg5 {[%clk 0:02:51]}  hxg5 {[%clk 0:02:29]} 10. c3 {[%clk 0:02:44]}  Qf6 {[%clk 0:02:25]} 11. Nbd2 {[%clk 0:02:40]}  Nxg3 {[%clk 0:02:24]} 12. Bxf7+ {[%clk 0:01:49]}  Kxf7 {[%clk 0:02:21]} 13. Rxh8 {[%clk 0:01:46]}  Qxh8 {[%clk 0:02:17]} 14. Qb3+ {[%clk 0:01:30]}  Kf6 {[%clk 0:02:03]} 15. O-O-O {[%clk 0:01:29]}  Ne2+ {[%clk 0:02:02]} 16. Kc2 {[%clk 0:01:24]}  Nf4 {[%clk 0:01:40]} 17. Qxb7 {[%clk 0:01:22]}  Nd7 {[%clk 0:01:38]} 18. d4 {[%clk 0:01:02]}  Bb6 {[%clk 0:01:26]} 19. Nc4 {[%clk 0:00:53]}  Be6 {[%clk 0:01:15]} 20. Nxb6 {[%clk 0:00:39]}  axb6 {[%clk 0:01:10]} 21. Qxc7 {[%clk 0:00:35]}  Qb8 {[%clk 0:00:48]} 22. dxe5+ {[%clk 0:00:23]}  Nxe5 {[%clk 0:00:46]} 23. Qxd6 {[%clk 0:00:16]}  Qxd6 {[%clk 0:00:45]} 24. Rxd6 {[%clk 0:00:16]}  Nxf3 {[%clk 0:00:45]} 25. gxf3 {[%clk 0:00:17]}  b5 {[%clk 0:00:41]} 26. a3 {[%clk 0:00:14]}  Ke5 {[%clk 0:00:38]} 27. Rb6 {[%clk 0:00:14]}  Bc4 {[%clk 0:00:38]} 28. b3 {[%clk 0:00:14]}  Bf1 {[%clk 0:00:36]} 29. c4 {[%clk 0:00:12]}  bxc4 {[%clk 0:00:36]} 30. bxc4 {[%clk 0:00:12]}  Bxc4 {[%clk 0:00:35]} 31. Kc3 {[%clk 0:00:12]}  Be6 {[%clk 0:00:34]} 32. Kb4 {[%clk 0:00:12]}  Nd3+ {[%clk 0:00:33]} 33. Kb5 {[%clk 0:00:08]}  Rxa3 {[%clk 0:00:33]} 34. Kc6 {[%clk 0:00:07]}  Rc3+ {[%clk 0:00:31]} 35. Kb7 {[%clk 0:00:06]}  Rb3 {[%clk 0:00:31]} 0-1


[Site "https://www.chess.com"]

[Event "Titled Tuesday Blitz January 31 Early 2023"]
[White "Arabidze, Meri"]
[Black "Kochetov, Andrey"]
[WhiteFideId "13604040"]
[BlackFideId "24130532"]
[WhiteElo "2441"]
[BlackElo "2165"]
[Result "1-0"]
[Round "10"]
[TimeControl "180+2"]
[Date "2023.01.31"]
[WhiteClock "0:01:10"]
[BlackClock "0:00:03"]

1. Nf3 {[%clk 0:03:00]}  Nf6 {[%clk 0:02:59]} 2. b3 {[%clk 0:03:01]}  d5 {[%clk 0:02:57]} 3. Bb2 {[%clk 0:03:02]}  Bf5 {[%clk 0:02:58]} 4. c4 {[%clk 0:03:00]}  e6 {[%clk 0:02:55]} 5. e3 {[%clk 0:02:59]}  c5 {[%clk 0:02:54]} 6. cxd5 {[%clk 0:02:57]}  Nxd5 {[%clk 0:02:52]} 7. Bb5+ {[%clk 0:02:57]}  Nc6 {[%clk 0:02:47]} 8. Ne5 {[%clk 0:02:56]}  Qc7 {[%clk 0:02:42]} 9. O-O {[%clk 0:02:53]}  Bd6 {[%clk 0:02:40]} 10. f4 {[%clk 0:02:49]}  O-O-O {[%clk 0:02:28]} 11. Bxc6 {[%clk 0:02:44]}  bxc6 {[%clk 0:02:28]} 12. Qe2 {[%clk 0:02:37]}  Nb4 {[%clk 0:02:12]} 13. e4 {[%clk 0:02:27]}  Bg6 {[%clk 0:02:06]} 14. Na3 {[%clk 0:02:23]}  f6 {[%clk 0:02:03]} 15. Nxg6 {[%clk 0:02:17]}  hxg6 {[%clk 0:02:03]} 16. e5 {[%clk 0:02:12]}  fxe5 {[%clk 0:01:47]} 17. fxe5 {[%clk 0:02:13]}  Be7 {[%clk 0:01:47]} 18. Nc4 {[%clk 0:02:10]}  Rhf8 {[%clk 0:01:12]} 19. a3 {[%clk 0:02:01]}  Nc2 {[%clk 0:01:09]} 20. Rac1 {[%clk 0:01:59]}  Nd4 {[%clk 0:01:09]} 21. Bxd4 {[%clk 0:01:59]}  cxd4 {[%clk 0:00:57]} 22. d3 {[%clk 0:01:59]}  Rf5 {[%clk 0:00:52]} 23. Rxf5 {[%clk 0:01:55]}  gxf5 {[%clk 0:00:50]} 24. b4 {[%clk 0:01:54]}  g6 {[%clk 0:00:38]} 25. Na5 {[%clk 0:01:54]}  c5 {[%clk 0:00:36]} 26. Nc4 {[%clk 0:01:41]}  Rd5 {[%clk 0:00:29]} 27. b5 {[%clk 0:01:29]}  Kd8 {[%clk 0:00:21]} 28. a4 {[%clk 0:01:28]}  Qb7 {[%clk 0:00:20]} 29. Rb1 {[%clk 0:01:20]}  a6 {[%clk 0:00:19]} 30. Qd2 {[%clk 0:01:19]}  g5 {[%clk 0:00:11]} 31. Qa5+ {[%clk 0:01:17]}  Ke8 {[%clk 0:00:07]} 32. Qxa6 {[%clk 0:01:16]}  Qc7 {[%clk 0:00:04]} 33. b6 {[%clk 0:01:13]}  Qb8 {[%clk 0:00:04]} 34. b7 {[%clk 0:01:12]}  Rd7 {[%clk 0:00:01]} 35. Qa8 {[%clk 0:01:10]}  Rd8 {[%clk 0:00:02]} 36. Qxb8 {[%clk 0:01:09]}  Rxb8 {[%clk 0:00:02]} 37. a5 {[%clk 0:01:10]}  Bd8 {[%clk 0:00:03]} 38. a6 {[%clk 0:01:10]} 1-0


[Site "https://www.chess.com"]